Workbook

Sheet Table of Contents
A1: Texas Comptroller’s Annual Local Debt Report
A2: Table of Contents
A3: 1 - Contact Information
A4: 2 - Individual Debt Obligations
A5: 3 - Summary of Debt Obligations
A6: 4 - Additional Notes
A7: 5 - Optional Reporting
A8: 6 - Instructions and Glossary
A9: End of Worksheet

Sheet 1 - Contact Information
A1: Texas Comptroller’s Annual Local Debt Report
A2: Fill in the cells in column B that correspond with the requested information. (*) indicates required information.
A3: Entity Information
A4: Political Subdivision Name*: | B4: City of Bryan, Texas
A5: Political Subdivision Type*: | B5: City
A6: If "other", please specify
A7: Reporting Fiscal Year*: | B7: 2024
A8: Fiscal Year Start (MM/DD/YYYY)*: | B8: 2023-10-01
A9: Fiscal Year End (auto): | B9: =IF(ISBLANK(B8),"",DATE(YEAR(B8)+1,MONTH(B8),DAY(B8)-1)) -> 2024-09-30
A10: Political Subdivision Website, if applicable: | B10: www.bryantx.gov
A11: Political Subdivision Telephone*: | B11: 979-209-5080
A12: Political Subdivision Email, if applicable:
A13: Does the Political Subdivision have any reportable debt?* | B13: Yes
A14: Contact Information
A15: Contact Name*: | B15: Alicia Kenney
A16: Contact Title*: | B16: Division Manager - Fiscal Services
A17: Contact Phone*: | B17: 979-209-5080
A18: Contact Email: | B18: akenney@bryantx.gov
A19: Physical Address, Line 1*: | B19: 300 S. Texas Ave.
A20: Physical Address, Line 2:
A21: City*: | B21: Bryan
A22: Zip*: | B22: 77803
A23: County*: | B23: Brazos
A24: Is the entity's physical and mailing address the same?* | B24: No
A25: Mailing Address, Line 1: | B25: PO Box 1000
A26: Mailing Address, Line 2:
A27: Mailing City: | B27: Bryan
A28: Mailing Zip: | B28: 77805
A29: Mailing County: | B29: Brazos
A30: Table of Contents
A31: End of Worksheet

Sheet 2 - Individual Debt Obligations
A1: Texas Comptroller’s Annual Local Debt Report
A2: Entity Information (Auto)
A3: Political Subdivision Name: | B3: =IF('1 - Contact Information'!B4="","",'1 - Contact Information'!B4) -> City of Bryan, Texas
A4: Reporting Fiscal Year: | B4: =IF('1 - Contact Information'!B7="","",'1 - Contact Information'!B7) -> 2024
A5: Directions: Beginning with the row immediately below the column headings, list each of the political subdivision's individual debt obligations along with the information for each obligation. Every column except B, Q, R and S is required for each debt obligation and must be provided for this report to be considered complete.
A6: All information entered should reflect the last day of the political subdivision's fiscal year identified on this form. If the political subdivision has no debt to report for the fiscal year, enter "No Reportable Debt" in the first cell below the column title in column A.
A7: Individual Debt Obligations (click column titles for more information)
A8: Outstanding debt obligation* | B8: If debt is conduit or component debt, enter related entity name: | C8: Principal issued* | D8: Principal outstanding* | E8: Combined principal and interest required to pay each outstanding debt obligation on time and in full* | F8: Final maturity date* (MM/DD/YYYY) | G8: Is the debt secured in any way by ad valorem taxes?* | H8: Total proceeds received* | I8: Proceeds spent* | J8: Proceeds unspent* | K8: Official stated purpose for which the debt obligation was authorized* | L8: Is the debt obligation rated by any nationally recognized credit rating organization?* | M8: Moody's | N8: S&P | O8: Fitch | P8: Kroll | Q8: Other rating (if applicable) | R8: Optional: Explanation of repayment source | S8: Optional: Comments or additional information per individual debt obligation
A9: General Obligation Refunding, Series 2013 | C9: 27685000 | D9: 1900000 | E9: 1974688 | F9: 2026-08-15 | G9: Yes | H9: 27811772.4 | I9: 27811772.4 | J9: =H9-I9 -> 0 | K9: Proceeds from the sale of the Bonds will be used (1) for the acquisition, construction, replacement and repair ro the City's rural electric system; (2 )to refund a portion of the City's outstanding debt (the "Refunded Obligations"), for debt service savings, and (3) to pay costs of issuing the Obligations. (Refunded Obligations include: 2001, 2003, 2004, 2005 CO's, 2004 and 2005 Water & Wastewater Revenue Bonds) | L9: Yes | M9: Not Rated | N9: AA | O9: Not Rated | P9: Not Rated
A10: General Obligation Refunding, Series 2014 | C10: 9245000 | D10: 3484999.98 | E10: 3859697.52 | F10: 2031-08-15 | G10: Yes | H10: 9322079.91 | I10: 9322079.91 | J10: 0 | K10: Proceeds from the sale of the Bonds will be used (i) to refund a portion of the City’s outstanding debt (the “Refunded Obligations”), for debt service savings, and (ii) to pay the costs of issuing the Bonds. (Refunded obligations include 2005 CO's & 2005 Water & Wastewater Revenue Bonds) | L10: Yes | M10: Not Rated | N10: AA | O10: Not Rated | P10: Not Rated
A11: General Obligation Refunding, Series 2015 | C11: 19480000 | D11: 1890000 | E11: 1932525 | F11: 2025-08-15 | G11: Yes | H11: 20404064.51 | I11: 20404064.51 | J11: 0 | K11: Proceeds from the sale of the Bonds will be used (i) to refund a portion of the City's outstanding debt (the "Refunded Obligations"), for debt service savings, and (ii) to pay costs of issuing the Bonds. (Refunded Obligations include: 2005 GO's & 2005 Electric Revenue Bonds) | L11: Yes | M11: Not Rated | N11: AA | O11: Not Rated | P11: Not Rated
A12: General Obligation Refunding, Series 2016 | C12: 7755000 | D12: 1670000 | E12: 1737200 | F12: 2026-08-15 | G12: Yes | H12: 8127164.98 | I12: 8127164.98 | J12: 0 | K12: Proceeds from the sale of the Bonds will be used (i) to refund a portion of the City's outstanding debt (the "Refunded Obligations"), for debt service savings, and (ii) to pay costs of issuing the Bonds. (Refunded Obligations are 2007 CO's) | L12: Yes | M12: Not Rated | N12: AA | O12: Not Rated | P12: Not Rated
A13: General Obligation Refunding, Series 2018 | C13: 6265000 | D13: 2740000 | E13: 2998150 | F13: 2028-08-15 | G13: Yes | H13: 6579046.4 | I13: 6579046.4 | J13: 0 | K13: Proceeds from the sale of the Bonds will be used (i) to refund a portion of the City’s outstanding debt (the “Refunded Obligations”), for debt service savings, and (ii) to pay the costs of issuing the Bonds. (Refunded Obligations are 2008 CO's) | L13: Yes | M13: Not Rated | N13: AA | O13: Not Rated | P13: Not Rated
A14: General Obligation Refunding, Series 2019 | C14: 4660000 | D14: 2475000 | E14: 2700300 | F14: 2029-08-15 | G14: Yes | H14: 4981429.47 | I14: 4981429.47 | J14: 0 | K14: Proceeds from the sale of the Bonds will be used (i) to refund a portion of the City’s outstanding debt (the “Refunded Obligations”), for debt service savings, and (ii) to pay the costs of issuing the Bonds. (Refunded Obligations are 2009 CO's) | L14: Yes | M14: Not Rated | N14: AA | O14: Not Rated | P14: Not Rated
A15: General Obligation Refunding, Series 2020 | C15: 7125000 | D15: 4395000 | E15: 4958800 | F15: 2030-08-15 | G15: Yes | H15: =7844388.05-100000 -> 7744388.05 | I15: 7744388.05 | J15: 0 | K15: Proceeds from the sale of the Bonds will be used (i) to refund a portion of the City’s outstanding debt (the “Refunded Obligations”), for debt service savings, and (ii) to pay the costs of issuing the Bonds. (Refunded Obligations are 2010 CO's) | L15: Yes | M15: Not Rated | N15: AA | O15: Not Rated | P15: Not Rated
A16: General Obligation Pension, Series 2020 | C16: 54700000 | D16: 50240000 | E16: 62654502 | F16: 2040-08-15 | G16: Yes | H16: 54700000 | I16: 54700000 | J16: 0 | K16: Proceeds from the sale of the Bonds will be used (i) to pay a portion of the City’s accrued unfunded liability to the Texas Municipal Retirement System and (ii) to pay the costs of issuing the Bonds. | L16: Yes | M16: Not Rated | N16: AA | O16: Not Rated | P16: Not Rated
A17: Certificate of Obligation-Combination Tax & Revenue, Series 2013 | B17: Bryan Texas Utilities | C17: 5600000 | D17: 2995000 | E17: 3647425.06 | F17: 2033-08-15 | G17: Yes | H17: 5652871.1 | I17: 5652871.1 | J17: 0 | K17: Proceeds from the sale of the Bonds will be used for the acquisition, construction, replacement and repair of substations, feeders and other distribution improvements to the City's rural electric system. | L17: Yes | M17: Not Rated | N17: AA | O17: Not Rated | P17: Not Rated
A18: Certificate of Obligation-Combination Tax & Revenue, Series 2014 | B18: Partial Bryan Texas Utilities | C18: 42615000 | D18: 27895000 | E18: 36112908.9 | F18: 2039-08-15 | G18: Yes | H18: 42683738.17 | I18: 42683738.17 | J18: 0 | K18: Proceeds from the sale of the Certificates will be used for (i) the acquisition and construction of improvements, additions and extensions to the City’s electric system, including facilities for the transmission and distribution of electric power and energy, (ii) constructing, improving, renovating, extending, expanding and developing streets, including drainage, traffic signalization, lighting, sidewalks, soundwalls and landscaping, and acquiring right-of-way related thereto, (iii) the purchase of fire-fighting equipment, including fire trucks, and (iv) related professional services, including legal, fiscal, engineering and design fees, and costs of issuance of the Certificates. | L18: Yes | M18: Not Rated | N18: AA | O18: Not Rated | P18: Not Rated
A19: Certificate of Obligation-Combination Tax & Revenue, Series 2016 | C19: 10435000 | D19: 6465000 | E19: 7651480 | F19: 2036-08-15 | G19: Yes | H19: 10919567.43 | I19: 10181408.45 | J19: 738158.98 | K19: Proceeds from the sale of the Certificates will be used for (i) constructing, improving, renovating, extending, expanding and developing streets, including drainage, traffic signalization, lighting, sidewalks, soundwalls and landscaping, and acquiring right-of-way related thereto, (ii) constructing, renovating and improving fire department facilities and purchasing fire fighting equipment, including fire trucks; (iii) constructing, renovating and improving airport facilities, including hangars; and (iv) related professional services, including legal, fiscal, engineering and design fees, and costs of issuance of the Certificates. | L19: Yes | M19: Not Rated | N19: AA | O19: Not Rated | P19: Not Rated
A20: Certificate of Obligation-Combination Tax & Revenue, Series 2018 | C20: 11965000 | D20: 9060000 | E20: 11407725.04 | F20: 2038-08-15 | G20: Yes | H20: 12324537.78 | I20: 10161448.81 | J20: 2163088.97 | K20: Proceeds from the sale of the Certificates will be used for (i) constructing, improving, renovating, extending, expanding and developing streets, including drainage, traffic signalization, lighting, sidewalks, soundwalls and landscaping, and acquiring right-of-way related thereto; (ii) constructing, renovating and improving fire department facilities and purchasing fire-fighting equipment, including fire trucks; and (iii) related professional services, including legal, fiscal, engineering and design fees, and costs of issuance of the Certificates. | L20: Yes | M20: Not Rated | N20: AA | O20: Not Rated | P20: Not Rated
A21: Certificate of Obligation-Combination Tax & Revenue, Series 2020 | C21: 70365000 | D21: 65440000 | E21: 89419231.48 | F21: 2050-08-15 | G21: Yes | H21: 72959393.2 | I21: 72959393.2 | J21: 0 | K21: Proceeds from the sale of the Certificates will be used for (i) constructing, acquiring, improving, renovating, expanding and developing parks and recreation facilities and related infrastructure, vehicles and equipment, including the Regional Park Project; (ii) constructing, acquiring, improving, renovating, expanding and developing streets and related infrastructure, vehicles and equipment, including drainage, traffic signalization, lighting, sidewalks, soundwalls and landscaping, and acquiring rigth-of-way related thereto; (iii) constructing, renovating and improving fire department facilities and purchasing fire-fighting equipment, including fire trucks; and (iv) related professional services, including legal, fiscal, engineering and design fees, and costs of issuance of the Certificates. | L21: Yes | M21: Not Rated | N21: AA | O21: Not Rated | P21: Not Rated
A22: Certificate of Obligation-Combination Tax & Revenue, Series 2022 | C22: 27425000 | D22: 26865000 | E22: 44151750 | F22: 2052-08-15 | G22: Yes | H22: 29142966.44 | I22: 13059555.16 | J22: 16083411.28 | K22: Proceeds from the sale of the Certificates will be used for (i) constructing, acquiring, improving, renovating, expanding and developing parks and recreation facilities and related infrastructure, vehicles and equipment, including the Regional Park Project; (ii) constructing, improving, renovating, extending, expanding, and developing streets and related infrastructure, vehicles and equipment, including drainage, traffic signalization, lighting, sidewalks, soundwalls and landscaping, and acquiring right-of-way related thereto; (iii) constructing, renovating, and improving fire department facilities and purchasing fire-fighting equipment, including fire-trucks; and (iv) related professional services, including legal, fiscal, engineering and design fees, and costs of issuance of the Certificates. | L22: Yes | M22: Not Rated | N22: AA | O22: Not Rated | P22: Not Rated
A23: Certificate of Obligation-Combination Tax & Revenue, Series 2024 | C23: 44360000 | D23: 44360000 | E23: 72462425 | F23: 2049-02-15 | G23: Yes | H23: 48476126.25 | I23: 22228355.25 | J23: 26247771 | K23: Proceeds from the sale of the Certificates will be used for (i) constructing, acquiring, improving, renovating, expanding and developing parks and recreation facilities and related infrastructure, vehicles and equipment, including tennis and multipurpose facilities and other improvements to Travis Bryan Midtown Park; (ii) constructing, improving, renovating, extending, expanding, and developing streets and related infrastructure, including drainage, traffic signalization, lighting, sidewalks, soundwalls and landscaping, and acquiring right-of-way, vehicles and equipment related thereto; (iii) constructing, improving, repairing, renovating, enlarging, extending and equipping the drainage utility system, and acquiring right-of-way, vehicles and equipment related thereto; (iv) constructing, acquiring, improving, renovating, expanding and developing airport improvements; (v) purchasing fire-fighting equipment, including fire trucks; and (vi) related professional services, including legal, fiscal, engineering and design fees, and costs of issuance of the Certificates. | M23: Not Rated | N23: AA+ | O23: Not Rated | P23: Not Rated
A24: Sewer System Revenue, Series 2011 | B24: Wastewater | C24: 15685000 | D24: 4955000 | E24: 5368760 | F24: 2030-07-01 | G24: No | H24: 15400098 | I24: 15400098 | J24: =H24-I24 -> 0 | K24: The Bonds are being issued for the purpose of (i) constructing, improving, repairing, renovating, enlarging, extending and equipping the Waterworks an Sewer System and (ii) paying the costs of issuing the Bonds. | L24: No
A25: Water and Sewer System Revenue, Series 2016A | B25: Water | C25: 4370000 | D25: 2920000 | E25: 3489562.56 | F25: 2036-07-01 | G25: No | H25: 4501212 | I25: 4501212 | J25: 0 | K25: Proceeds from the sale of the Bonds will be used for (i) constructing, improving, repairing, renovating, enlarging, extending and equip the Waterworks and Sewer System, and (ii) paying related professional services, including legal, fiscal, engineering and design fees, and costs of issuance of the Bonds. | L25: Yes | M25: Not Rated | N25: AA− | O25: Not Rated | P25: Not Rated
A26: Water and Sewer System Revenue, Series 2016B | B26: Water | C26: 2345000 | D26: 1680000 | E26: 2067955.5 | F26: 2041-07-01 | G26: No | H26: 2345000 | I26: 2345000 | J26: 0 | K26: Proceeds from the sale of the Bonds will be used for (i) constructing, improving, repairing, renovating, enlarging, extending and equip the Waterworks and Sewer System, and (ii) paying related professional services, including legal, fiscal, engineering and design fees, and costs of issuance of the Bonds. | L26: No
A27: Water and Sewer System Revenue, Series 2017 | B27: Water & Wastewater | C27: 19900000 | D27: 7025000 | E27: 8069100 | F27: 2032-07-01 | G27: No | H27: 21708122 | I27: 21708122 | J27: 0 | K27: Proceeds from the sale of the Bonds will be used to refund a portion of the City’s outstanding 2007 Waterworks and Sewer System Revenue Bonds in order to provide debt service savings for the City, to purchase a surety bond to fund the 2017 Reserve Fund, and to pay issuance costs on the Bonds. | L27: Yes | M27: Not Rated | N27: AA | O27: Not Rated | P27: Not Rated
A28: Water and Sewer System Revenue, Series 2019 | B28: Water & Wastewater | C28: 3150000 | D28: 1635000 | E28: 1783200 | F28: 2029-07-01 | G28: No | H28: =3150000+206255.89 -> 3356255.89 | I28: 3356255.89 | J28: 0 | K28: Proceeds from the sale of the Bonds will be used (i) to construct, improve, repair, renovate, enlarge, extend and equip the Waterworks and Sewer System and (ii) to pay the costs of issuing of the Bonds. | L28: Yes | M28: Aa2 | N28: AAA | O28: Not Rated | P28: Not Rated
A29: Water Refunding Revenue, Series 2020 | B29: Water | C29: 2970000 | D29: 2015000 | E29: 2203750 | F29: 2030-07-01 | G29: No | H29: =3142295.96-87974.26 -> 3054321.7 | I29: 3054321.7 | J29: 0 | K29: Proceeds from the sale of the Bonds will be used (i) to refund a portion of the City’s outstanding Waterworks and Sewer System Revenue Bonds (the “Refunded Bonds”), for debt service savings, and (ii) to pay the costs of issuing the Bonds. (Refunded Bonds are WWSS Revenue 2010A series) | L29: Yes | M29: Not Rated | N29: AA | O29: Not Rated | P29: Not Rated
A30: Water and Sewer System Revenue, Series 2021 | B30: Water & Wastewater | C30: 15655000 | D30: 13905000 | E30: 17272316.5 | F30: 2046-07-01 | G30: No | H30: 15655000 | I30: =88342+429180 -> 517522 | J30: 15137478 | K30: Proceeds from the sale of the Bonds will be used for (i) constructing, improving, repairing, renovating, enlarging, extending and equip the Waterworks and Sewer System, and (ii) paying related professional services, including legal, fiscal, engineering and design fees, and costs of issuance of the Bonds. | L30: Yes | M30: Not Rated | N30: AA | O30: Not Rated | P30: Not Rated
A31: Electric System Revenue City, Series 2016 | B31: Bryan Texas Utilities | C31: 71435000 | D31: 57325000 | E31: 79064750 | F31: 2041-07-01 | G31: No | H31: 82623854.65 | I31: 82623854.65 | J31: 0 | K31: Proceeds from the sale of the Bonds will be used for (i) financing costs or expenses incurred in relation to the acquisition or construction of improvements, additions, or extensions to the Electric System, including facilities for the generation, transmission, or distribution of electric power and energy, and capital assets, facilities and equipment incident and related to the operation, maintenance, or administration of the Electric System; (ii) funding the reserve fund requirement for the Bonds with a municipal bond reserve fund insurance policy issued by Assured Guaranty Municipal Corp.; (iii) refunding portions of outstanding bonds for debt service savings and (iv) paying the cost of issuing the Bonds. | L31: Yes | M31: Not Rated | N31: A+ | O31: AA− | P31: Not Rated
A32: Electric System Revenue City, Series 2018 | B32: Bryan Texas Utilities | C32: 40590000 | D32: 35525000 | E32: 53623800 | F32: 2043-07-01 | G32: No | H32: 41950000 | I32: 41950000 | J32: 0 | K32: Proceeds from the sale of the Bonds will be used for (i) financing costs or expenses incurred in relation to the acquisition or construction of improvements, additions, or extensions to the Rural System, including facilities for the generation, transmission, or distribution of electric power and energy, and capital assets, facilities and equipment incident and related to the operation, maintenance, or administration of the Rural System; (ii) funding the reserve fund requirement for the Bonds with a municipal bond reserve fund insurance policy issued by Assured Guaranty Municipal Corp.; (iii) refunding portions of outstanding bonds for debt service savings, and (iv) paying the cost of issuing the Bonds. | L32: Yes | M32: Not Rated | N32: A+ | O32: AA− | P32: Not Rated
A33: Electric System Revenue Rural, Series 2016 | B33: Bryan Texas Utilities | C33: 15770000 | D33: 11755000 | E33: 15205650 | F33: 2041-07-01 | G33: No | H33: 17180560.5 | I33: 17180560.5 | J33: 0 | K33: Proceeds from the sale of the Bonds will be used for (i) financing costs or expenses incurred in relation to the acquisition or construction of improvements, additions, or extensions to the Rural System, including facilities for the generation, transmission, or distribution of electric power and energy, and capital assets, facilities and equipment incident and related to the operation, maintenance, or administration of the Rural System; (ii) funding the reserve fund requirement for the Bonds with a municipal bond reserve fund insurance policy issued by Assured Guaranty Municipal Corp.; (iii) refunding portions of outstanding bonds for debt service savings, and (iv) paying the cost of issuing the Bonds. | L33: Yes | M33: Not Rated | N33: AA− | O33: AA− | P33: Not Rated
A34: Electric System Revenue City, Series 2017 | B34: Bryan Texas Utilities | C34: 57225000 | D34: 37200000 | E34: 45140162.6 | F34: 2034-07-01 | G34: No | H34: 69063020.7 | I34: 69063020.7 | J34: 0 | K34: Proceeds from the sale of the Bonds will be used (i) to refund portions of the City's outstanding bonds for debt service savings, (ii) to purchase a surety bond to fund the reserve fund requirement for the Bonds, and (iii) for paying the costs of issuing the Bonds. | L34: Yes | M34: Not Rated | N34: A+ | O34: AA− | P34: Not Rated
A35: Electric System Revenue Rural, Series 2018 | B35: Bryan Texas Utilities | C35: 17320000 | D35: 15060000 | E35: 21904200 | F35: 2043-07-01 | G35: No | H35: 17700000 | I35: 17700000 | J35: 0 | K35: Proceeds from the sale of the Bonds will be used for (i) financing costs or expenses incurred in relation to the acquisition or construction of improvements, additions, or extensions to the Rural System, including facilities for the generation, transmission, or distribution of electric power and energy, and capital assets, facilities and equipment incident and related to the operation, maintenance, or administration of the Rural System; (ii) funding the reserve fund requirement for the Bonds, and (iii) paying the cost of issuing the Bonds. | L35: Yes | M35: Not Rated | N35: AA− | O35: AA− | P35: Not Rated
A36: Electric System Revenue City, Series 2021 | B36: Bryan Texas Utilities | C36: 15700000 | D36: 14615000 | E36: 22434450 | F36: 2046-07-01 | G36: No | H36: 18865282.95 | I36: 18705626 | J36: 159656.95 | K36: Proceeds from the sale of the Bonds will be used for (i) financing costs or expenses incurred in relation to the acquisition or construction of improvements, additions, or extensions to the Electric System, including facilities for the generation, transmission, or distribution of electric power and energy, and capital assets, facilities and equipment incident and related to the operation, maintenance, or administration of the Electric System, (ii) funding the reserve fund requirement for the Bonds, and (iii) paying the costs of issuing the Bonds | L36: Yes | M36: Not Rated | N36: AA | O36: AA− | P36: Not Rated
A37: Electric System Revenue City, Series 2021A | B37: Bryan Texas Utilities | C37: 66795000 | D37: 62260000 | E37: 87285125 | F37: 2046-07-01 | G37: No | H37: 74522694.25 | I37: 61102982 | J37: 13419712.25 | K37: Proceeds from the sale of the Bonds will be used for (i) financing costs or expenses incurred in relation to the acquisition or construction of improvements, additions, or extensions to the Electric System, including facilities for the generation, transmission, or distribution of electric power and energy, and capital assets, facilities and equipment incident and related to the operation, maintenance, or administration of the Electric System, (ii) funding the reserve fund requirement for the Bonds, and (iii) paying the costs of issuing the Bonds | L37: Yes | M37: Not Rated | N37: AA | O37: AA− | P37: Not Rated
A38: Electric System Revenue Rural, Series 2021 | B38: Bryan Texas Utilities | C38: 19675000 | D38: 18075000 | E38: 25262225 | F38: 2046-07-01 | G38: No | H38: 22099349.35 | I38: 22099349.35 | J38: 0 | K38: Proceeds from the sale of the Bonds will be used for (i) financing costs or expenses incurred in relation to the acquisition or construction of improvements, additions, or extensions to the Rural Electric System, including facilities for the generation, transmission, or distribution of electric power and energy, and capital assets, facilities and equipment incident and related to the operation, maintenance, or administration of the Rural Electric System, (ii) funding the reserve fund requirement for the Bonds, and (iii) paying the costs of issuing the Bonds | L38: Yes | M38: Not Rated | N38: AA | O38: AA− | P38: Not Rated
A39: Electric System Revenue City, Series 2022 | B39: Bryan Texas Utilities | C39: 25510000 | D39: 22385000 | E39: 29469250 | F39: 2035-07-01 | G39: No | H39: 30493336.91 | I39: 30493336.91 | J39: 0 | K39: Proceeds from the sale of the Bonds will be used (i) to refund portions of the City’s outstanding bonds (the “Refunded Bonds”) for debt service savings (see “SCHEDULE I”), and (ii) for paying the costs of issuing the Bonds (see “THE BONDS – Sources and Uses of Bond Proceeds”). | L39: Yes | M39: Not Rated | N39: AA | O39: AA− | P39: Not Rated
A40: Electric System Revenue Rural, Series 2024 | B40: Bryan Texas Utilities | C40: 14465000 | D40: 14465000 | E40: 24412110 | F40: 2049-07-01 | G40: No | H40: 15194110 | I40: =15194110-3767014 -> 11427096 | J40: 3767014 | K40: Proceeds from the sale of the Bonds will be used for (i) financing costs or expenses incurred in relation to the acquisition or construction of improvements, additions, or extensions to the Rural Electric System, including facilities for the generation, transmission, or distribution of electric power and energy, and capital assets, facilities and equipment incident and related to the operation, maintenance, or administration of the Rural Electric System, (ii) funding the reserve fund requirement for the Bonds, and (iii) paying the costs of issuing the Bonds | L40: Yes | M40: Not Rated | N40: AA | O40: AA | P40: Not Rated
A41: Authorized but Unissued - 1984 | B41: Streets | C41: 0 | D41: 0 | E41: 0 | F41: N/A | G41: No | H41: 0 | I41: 0 | J41: 0 | K41: Authorized but Unissued | L41: No | S41: Authorized but Unissued - $8,225,000
A42: Authorized but Unissued - 1984 | B42: Parks | C42: 0 | D42: 0 | E42: 0 | F42: N/A | G42: No | H42: 0 | I42: 0 | J42: 0 | K42: Authorized but Unissued | L42: No | S42: Authorized but Unissued - $1,775,000
A43: Authorized but Unissued - 1984 | B43: Railroad Grade Separation | C43: 0 | D43: 0 | E43: 0 | F43: N/A | G43: No | H43: 0 | I43: 0 | J43: 0 | K43: Authorized but Unissued | L43: No | S43: Authorized but Unissued - $2,850,000
A44: Authorized but Unissued - 1984 | B44: Sanitary Landfill | C44: 0 | D44: 0 | E44: 0 | F44: N/A | G44: No | H44: 0 | I44: 0 | J44: 0 | K44: Authorized but Unissued | L44: No | S44: Authorized but Unissued - $200,000
C45: 0 | D45: 0 | E45: 0 | H45: 0 | I45: 0 | J45: 0
C46: 0 | D46: 0 | E46: 0 | H46: 0 | I46: 0 | J46: 0
C47: 0 | D47: 0 | E47: 0 | H47: 0 | I47: 0 | J47: 0
C48: 0 | D48: 0 | E48: 0 | H48: 0 | I48: 0 | J48: 0
C49: 0 | D49: 0 | E49: 0 | H49: 0 | I49: 0 | J49: 0
C50: 0 | D50: 0 | E50: 0 | H50: 0 | I50: 0 | J50: 0
C51: 0 | D51: 0 | E51: 0 | H51: 0 | I51: 0 | J51: 0
C52: 0 | D52: 0 | E52: 0 | H52: 0 | I52: 0 | J52: 0
C53: 0 | D53: 0 | E53: 0 | H53: 0 | I53: 0 | J53: 0
C54: 0 | D54: 0 | E54: 0 | H54: 0 | I54: 0 | J54: 0
C55: 0 | D55: 0 | E55: 0 | H55: 0 | I55: 0 | J55: 0
C56: 0 | D56: 0 | E56: 0 | H56: 0 | I56: 0 | J56: 0
C57: 0 | D57: 0 | E57: 0 | H57: 0 | I57: 0 | J57: 0
C58: 0 | D58: 0 | E58: 0 | H58: 0 | I58: 0 | J58: 0
C59: 0 | D59: 0 | E59: 0 | H59: 0 | I59: 0 | J59: 0
C60: 0 | D60: 0 | E60: 0 | H60: 0 | I60: 0 | J60: 0
C61: 0 | D61: 0 | E61: 0 | H61: 0 | I61: 0 | J61: 0
C62: 0 | D62: 0 | E62: 0 | H62: 0 | I62: 0 | J62: 0
C63: 0 | D63: 0 | E63: 0 | H63: 0 | I63: 0 | J63: =H63-I63 -> 0
C64: 0 | D64: 0 | E64: 0 | H64: 0 | I64: 0 | J64: 0
C65: 0 | D65: 0 | E65: 0 | H65: 0 | I65: 0 | J65: 0
C66: 0 | D66: 0 | E66: 0 | H66: 0 | I66: 0 | J66: 0
C67: 0 | D67: 0 | E67: 0 | H67: 0 | I67: 0 | J67: 0
C68: 0 | D68: 0 | E68: 0 | H68: 0 | I68: 0 | J68: 0
C69: 0 | D69: 0 | E69: 0 | H69: 0 | I69: 0 | J69: 0
C70: 0 | D70: 0 | E70: 0 | H70: 0 | I70: 0 | J70: 0
C71: 0 | D71: 0 | E71: 0 | H71: 0 | I71: 0 | J71: 0
C72: 0 | D72: 0 | E72: 0 | H72: 0 | I72: 0 | J72: 0
C73: 0 | D73: 0 | E73: 0 | H73: 0 | I73: 0 | J73: 0
C74: 0 | D74: 0 | E74: 0 | H74: 0 | I74: 0 | J74: 0
C75: 0 | D75: 0 | E75: 0 | H75: 0 | I75: 0 | J75: 0
C76: 0 | D76: 0 | E76: 0 | H76: 0 | I76: 0 | J76: 0
C77: 0 | D77: 0 | E77: 0 | H77: 0 | I77: 0 | J77: 0
C78: 0 | D78: 0 | E78: 0 | H78: 0 | I78: 0 | J78: 0
C79: 0 | D79: 0 | E79: 0 | H79: 0 | I79: 0 | J79: 0
C80: 0 | D80: 0 | E80: 0 | H80: 0 | I80: 0 | J80: 0
C81: 0 | D81: 0 | E81: 0 | H81: 0 | I81: 0 | J81: 0
C82: 0 | D82: 0 | E82: 0 | H82: 0 | I82: 0 | J82: 0
C83: 0 | D83: 0 | E83: 0 | H83: 0 | I83: 0 | J83: 0
C84: 0 | D84: 0 | E84: 0 | H84: 0 | I84: 0 | J84: 0
C85: 0 | D85: 0 | E85: 0 | H85: 0 | I85: 0 | J85: 0
C86: 0 | D86: 0 | E86: 0 | H86: 0 | I86: 0 | J86: 0
C87: 0 | D87: 0 | E87: 0 | H87: 0 | I87: 0 | J87: 0
C88: 0 | D88: 0 | E88: 0 | H88: 0 | I88: 0 | J88: 0
C89: 0 | D89: 0 | E89: 0 | H89: 0 | I89: 0 | J89: 0
C90: 0 | D90: 0 | E90: 0 | H90: 0 | I90: 0 | J90: 0
C91: 0 | D91: 0 | E91: 0 | H91: 0 | I91: 0 | J91: 0
C92: 0 | D92: 0 | E92: 0 | H92: 0 | I92: 0 | J92: 0
C93: 0 | D93: 0 | E93: 0 | H93: 0 | I93: 0 | J93: 0
C94: 0 | D94: 0 | E94: 0 | H94: 0 | I94: 0 | J94: 0
C95: 0 | D95: 0 | E95: 0 | H95: 0 | I95: 0 | J95: 0
C96: 0 | D96: 0 | E96: 0 | H96: 0 | I96: 0 | J96: 0
C97: 0 | D97: 0 | E97: 0 | H97: 0 | I97: 0 | J97: 0
C98: 0 | D98: 0 | E98: 0 | H98: 0 | I98: 0 | J98: 0
C99: 0 | D99: 0 | E99: 0 | H99: 0 | I99: 0 | J99: 0
C100: 0 | D100: 0 | E100: 0 | H100: 0 | I100: 0 | J100: 0
C101: 0 | D101: 0 | E101: 0 | H101: 0 | I101: 0 | J101: 0
C102: 0 | D102: 0 | E102: 0 | H102: 0 | I102: 0 | J102: 0
C103: 0 | D103: 0 | E103: 0 | H103: 0 | I103: 0 | J103: 0
C104: 0 | D104: 0 | E104: 0 | H104: 0 | I104: 0 | J104: 0
C105: 0 | D105: 0 | E105: 0 | H105: 0 | I105: 0 | J105: 0
C106: 0 | D106: 0 | E106: 0 | H106: 0 | I106: 0 | J106: 0
C107: 0 | D107: 0 | E107: 0 | H107: 0 | I107: 0 | J107: 0
C108: 0 | D108: 0 | E108: 0 | H108: 0 | I108: 0 | J108: 0
C109: 0 | D109: 0 | E109: 0 | H109: 0 | I109: 0 | J109: 0
C110: 0 | D110: 0 | E110: 0 | H110: 0 | I110: 0 | J110: 0
C111: 0 | D111: 0 | E111: 0 | H111: 0 | I111: 0 | J111: 0
A112: Table of Contents
A113: End of Worksheet

Sheet 3 - Summary of Debt Obligations
A1: Texas Comptroller’s Annual Local Debt Report
A2: Entity Information (Auto)
A3: Political Subdivision Name: | B3: =IF('1 - Contact Information'!B4="","",'1 - Contact Information'!B4) -> City of Bryan, Texas
A4: Reporting Fiscal Year: | B4: =IF(OR('1 - Contact Information'!B7="",'1 - Contact Information'!B7="(select)"),"",'1 - Contact Information'!B7) -> 2024
A5: Directions: Fill in the cells in column B that correspond with the requested information.
A6: All information entered should reflect the last day of the political subdivision's fiscal year identified on this form.
A7: If there is no debt to report for the fiscal year, enter "N/A" or "$0" in each cell along column B.
A8: Total Tax-Supported and Revenue Debt
A9: Total authorized debt obligations: | B9: =SUM('2 - Individual Debt Obligations'!C:C)+13050000 -> 771290000
A10: Total principal of all outstanding debt obligations: | B10: =SUM('2 - Individual Debt Obligations'!D:D) -> 574675000
A11: Combined principal and interest required to pay all outstanding debt obligations on time and in full: | B11: =SUM('2 - Individual Debt Obligations'!E:E) -> 791725175.2
A12: Total debt secured by Ad Valorem Taxation (includes combination tax and revenue debt obligations)
A13: Total authorized debt obligations secured by ad valorem taxation: | B13: =SUMIFS('2 - Individual Debt Obligations'!C:C,'2 - Individual Debt Obligations'!G:G,"Yes") -> 349680000
A14: Total principal of all outstanding debt obligations secured by ad valorem taxation: | B14: =SUMIFS('2 - Individual Debt Obligations'!D:D,'2 - Individual Debt Obligations'!G:G,"Yes") -> 251875000
A15: Combined principal and interest required to pay all outstanding debt obligations secured by ad valorem taxation on time and in full: | B15: =SUMIFS('2 - Individual Debt Obligations'!E:E,'2 - Individual Debt Obligations'!G:G,"Yes") -> 347668808
A16: Per Capita Total Debt secured by Ad Valorem Taxation (required for municipalities, counties, and school districts only)
A17: Population of the political subdivision: | B17: 89615
A18: Source and year of population data: | B18: https://www.census.gov/quickfacts/fact/table/bryancitytexas,US/PST045219
A19: Total authorized debt obligations secured by ad valorem taxation expressed as a per capita amount: | B19: =+B13/B17 -> 3902.025331
A20: Total principal of outstanding debt obligations secured by ad valorem taxation as a per capita amount: | B20: =+B14/B17 -> 2810.63438
A21: Combined principal and interest required to pay all outstanding debt obligations secured by ad valorem taxation on time and in full as a per capita amount: | B21: =+B15/B17 -> 3879.582748
A22: Table of Contents
A23: end of sheet

Sheet Hide (hidden)
A1: (select) | B1: (select) | C1: (select) | D1: Moody's | E1: S&P | F1: Fitch | G1: Kroll | H1: N/A - No Reportable Debt
A2: Yes | B2: City | C2: 2016 | D2: (select) | E2: (select) | F2: (select) | G2: (select)
A3: No | B3: County | C3: =C2+1 -> 2017 | D3: Not Rated | E3: Not Rated | F3: Not Rated | G3: Not Rated
B4: ISD | C4: =C3+1 -> 2018 | D4: Aaa | E4: AAA | F4: AAA | G4: AAA
B5: CCD | C5: 2019 | D5: Aa1 | E5: AA+ | F5: AA+ | G5: AA
B6: Water District | C6: 2020 | D6: Aa2 | E6: AA | F6: AA | G6: A
B7: Other | C7: 2021 | D7: Aa3 | E7: AA− | F7: AA− | G7: BBB
C8: 2022 | D8: A1 | E8: A+ | F8: A+ | G8: BB
C9: 2023 | D9: A2 | E9: A | F9: A | G9: B
C10: 2024 | D10: A3 | E10: A− | F10: A− | G10: CCC
D11: Baa1 | E11: BBB+ | F11: BBB+ | G11: CC
D12: Baa2 | E12: BBB | F12: BBB | G12: C
D13: Baa3 | E13: BBB− | F13: BBB− | G13: D
D14: Ba1 | E14: BB+ | F14: BB+
D15: Ba2 | E15: BB | F15: BB
D16: Ba3 | E16: BB− | F16: BB−
D17: B1 | E17: B+ | F17: B+
D18: B2 | E18: B | F18: B
D19: B3 | E19: B− | F19: B−
D20: Caa | E20: CCC | F20: CCC
D21: Ca | E21: CC | F21: CC
D22: C | E22: C | F22: C
E23: D | F23: D
A31: Protection Pasword: | C31: hb1378

Sheet 4 - Additional Notes
A1: Texas Comptroller’s Annual Local Debt Report
A2: Additional Notes (optional)
A3: Please use this space to enter any other information the political subdivision considers relevant or necessary to explain information submitted in this report. Enter your coments in column B
A4: 1
A5: 2
A6: 3
A7: 4
A8: 5
A9: 6
A10: 7
A11: 8
A12: 9
A13: 10
A14: Table of Contents
A15: End of Worksheet

Sheet 5 - Optional Reporting
A1: Texas Comptroller’s Annual Local Debt Report
A2: Optional Reporting
A3: Directions: Please complete each of the cells in the right-most column (column E) for all debt obligations in aggregate (or total) as of the last day of the political subdivision's most recently completed fiscal year.
A4: For political subdivisions other than school districts, municipalities and counties
A5: Item # | B5: Optional Item | C5: Instructions | D5: References, Local Government Code | E5: Response
A6: 1 | B6: Total authorized debt obligations secured by ad valorem taxation expressed as a per capita amount for political subdivisions other than municipalities, school districts and counties. | C6: Sum all authorized debt obligations secured in any way by ad valorem taxation that have yet to be repaid. Include combination tax and revenue debt in this calculation. Divide this sum by the population of the political subdivision for the corresponding year of debt obligation data. | D6: 140.008(b)(3)(A)
A7: 2 | B7: Population total used to calculate per capita figure in #1: | C7: The denominator used to calculate per capita figure requested in #1.This is a population total for your entity. | D7: 140.008(b)(3)(A)
A8: 3 | B8: Source and year of population estimate used to calculate per capita figure in #1: | C8: The source of population data comprising the denominator of per capita figure in #1. | D8: 140.008(b)(3)(A)
A9: 4 | B9: Total principal on outstanding debt obligations secured by ad valorem taxation expressed as a per capita amount: | C9: Sum the total amount borrowed of all obligations secured in any way by ad valorem taxation that have yet to be repaid. Include combination tax and revenue debt obligations in this total. Ensure that the population data matches time frame of the fiscal year for which you are reporting. | D9: 140.008(b)(3)(A)
A10: 5 | B10: Population total used to calculate per capita figure in #4: | C10: The denominator used to calculate per capita figure requested in #4.This is a population total for your entity. | D10: 140.008(b)(3)(A)
A11: 6 | B11: Source and year of population estimate used to calculate per capita figure in #4: | C11: The source of population data comprising the denominator of per capita figure in #4. | D11: 140.008(b)(3)(A)
A12: 7 | B12: Total combined principal and interest required to pay all outstanding ad valorem-secured debt obligations on time and in full, expressed as a per capita amount: | C12: Sum the total amount borrowed of all obligations secured in any way by ad valorem taxation that have yet to be repaid. Include combination tax and revenue debt obligations in this total. Add to this the cost of debt service for these debt obligations. Divide this total by the population of the political subdivision. Ensure that the population data matches time frame of the fiscal year for which you are reporting. | D12: 140.008(b)(3)(A)
A13: 8 | B13: Population total used to calculate per capita figure in #7: | C13: The denominator used to calculate per capita figure requested in #7.This is a population total for your entity. | D13: 140.008(b)(3)(A)
A14: 9 | B14: Source and year of population estimate used to calculate per capita figure in #7: | C14: The source of population data comprising the denominator of per capita figure in #7. | D14: 140.008(b)(3)(A)
A15: For all political subdivisions
A16: Item # | B16: Optional Item | C16: Instructions | D16: References, Local Government Code | E16: Response
A17: 10 | B17: Total authorized and outstanding debt obligations secured by ad valorem taxation, expressed as a per capita amount, projected as of the last day of the maximum term of the most recent debt obligation: | C17: Sum any and all authorized debt obligations secured in any way by ad valorem taxation that have yet to be repaid. Include combination tax and revenue debt obligations in this total. Divide this by the projected population of the political subdivision as of the entity's last day of the maximum term of the most recently issued debt obligation. | D17: 140.008(b)(3)(C)
A18: 11 | B18: Population projection total used to calculate per capita figure in #10: | C18: The denominator used to calculate per capita figure requested in #10.This is a population projection total for your entity. | D18: 140.008(b)(3)(C)
A19: 12 | B19: Source and year of population projection used to calculate per capita figure in #10: | C19: The source of population projection comprising the denominator of per capita figure in #10. | D19: 140.008(b)(3)(C)
A20: 13 | B20: Date of last day of maximum term of most recently issued debt obligation in #10(MM/DD/YYYY): | C20: The bill asks for the "most recent debt obligation" which is interpreted to mean the most recently issued debt obligation issued by the political subdivision. | D20: 140.008(b)(3)(C)
A21: 14 | B21: Total principal on outstanding debt obligations secured by ad valorem taxation expressed as a per capita amount, projected as of the last day of the maximum term of the most recently issued debt obligation: | C21: Sum the total amount borrowed of all obligations secured in any way by ad valorem taxation that have yet to be repaid. Include combination tax and revenue debt obligations in this total. Divide by the projected population total for the political subdivision corresponding to the last day of the maximum term of the most recently issued debt obligation. | D21: 140.008(b)(3)(C)
A22: 15 | B22: Population projection total used to calculate per capita figure in #14: | C22: The denominator used to calculate per capita figure requested in #14.This is a population projection total for your entity. | D22: 140.008(b)(3)(C)
A23: 16 | B23: Source and year of population projection used to calculate per capita figure in #14: | C23: The source of the population projection comprising the denominator of per capita figure in #14. | D23: 140.008(b)(3)(C)
A24: 17 | B24: Date of last day of maximum term of most recently issued debt obligation in #14(MM/DD/YYYY): | C24: The bill asks for the "most recent debt obligation" which is interpreted to mean the most recently issued debt obligation issued by the political subdivision. | D24: 140.008(b)(3)(C)
A25: 18 | B25: Total combined principal and interest required to pay all outstanding ad valorem-secured debt obligations on time and in full, expressed as a per capita amount, projected as of the last day of the maximum term of the most recently issued debt obligation: | C25: Sum the total amount borrowed of all obligations secured in any way by ad valorem taxation that have yet to be repaid. Include combination tax and revenue debt obligations in this total. Add to this the cost of debt service for these debt obligations. Divide this total by the projected population of the political subdivision corresponding to the last day of the maximum term of the most recently issued debt obligation. | D25: 140.008(b)(3)(C)
A26: 19 | B26: Population total used to calculate per capita figure in #18: | C26: The denominator used to calculate per capita figure requested in #18.This is a population projection total for your entity. | D26: 140.008(b)(3)(C)
A27: 20 | B27: Source and year of population estimate used to calculate projected per capita figure in #18: | C27: The source of the population projection comprising the denominator of per capita figure in #18. | D27: 140.008(b)(3)(C)
A28: 21 | B28: Date of last day of maximum term of most recently issued debt obligation in #18(MM/DD/YYYY): | C28: The bill asks for the "most recent debt obligation" which is interpreted to mean the most recently issued debt obligation issued by the political subdivision. | D28: 140.008(b)(3)(C)
A29: Table of Contents
A30: End of Worksheet

Sheet 6 - Instructions and Glossary
A1: Texas Comptroller’s Annual Local Debt Report
A2: Instructions and Glossary
A3: The tables below provide further guidance on properly completing this report. Please contact the Texas Comptroller's office if you have any further questions, by phone (844) 519-5676; or email Transparency@CPA.texas.gov
A4: Tab 1: Contact Information
A5: Item # | B5: Terms | C5: Definitions | D5: Directions | E5: References, Local Government Code
A6: 1 | B6: Political Subdivision Name | C6: Political subdivisions are counties, municipalities, school districts, junior college districts, other special districts, or other subdivisions of state government (Local Government Code, section 140.008 (a) (2)) | D6: Enter the legal name of your political subdivision. | E6: 140.008(2)
A7: 2 | B7: Political Subdivision Type | C7: Political subdivisions are counties, municipalities, school districts, junior college districts, other special districts, or other subdivisions of state government (Local Government Code, section 140.008 (a) (2)) | D7: Click on the cell to access the drop down menu. Select the appropriate type of political entity from the list. If "other" is selected, the blank cell below it must specify the type. Selecting another entity will black the lower cell out. | E7: 140.008(2)
A8: 3 | B8: Does the Political Subdivision have reportable debt? | C8: A political subdivision must annually compile and report the required financial information under Local Government Code, Section 140.008. There is not an exception to the filing requirement for a political subdivision with no outstanding debt. | D8: Click on the cell to the right to access the drop down menu. Selecting "No" still requires tabs 2 and 3 to be completed. All contact and entity information needs to be completed regardless if there is no reportable debt. | E8: 140.008
A9: Tab 2: Individual Debt Obligations
A10: Column | B10: Terms | C10: Definitions | D10: Directions | E10: References, Local Government Code
A11: column A | B11: Outstanding debt obligation | C11: an issued public security, as defined under Government Code §1201.002, that has yet to be repaid. | D11: Enter the name of the individual debt obligation or bond series. If the entity has no debt to report, enter "No Reportable Debt" in the first cell below the column title (row 10). | E11: 140.008(b)(1)(C)
A12: column B | B12: If debt is conduit or component debt, enter related entity name | C12: debt that is not a legal liability of the political subdivision but is secured by another entity, such as an Economic Development Corporation | D12: Enter the name of the entity who the debt is issued to on behalf of the political subdivision. | E12: N/A
A13: column C | B13: Principal issued | C13: total amount borrowed (par) | D13: Enter the amount borrowed for each individual debt obligation or bond series. | E13: 140.008(b)(1)(G)(i)
A14: column D | B14: Principal outstanding | C14: total amount borrowed (par) of obligation that has yet to be repaid | D14: Enter the amount borrowed that has yet to be repaid for each individual debt obligation or bond series. | E14: 140.008(b)(1)(C)
A15: column E | B15: Combined principal and interest required to pay each outstanding debt obligation on time and in full | C15: the total amount borrowed (par) plus the cost of interest for each individual debt obligation or bond series | D15: Enter the amount borrowed plus the cost of interest for each individual debt obligation or bond series; total debt service. | E15: 140.008(b)(1)(E )
A16: column F | B16: Final maturity date | C16: final payment date of individual debt obligation at which point all principal and interest will be paid off | D16: Enter the date of the final payment of principal and interest for each individual debt obligation. | E16: 140.008(b)(1)(G)(iii)
A17: column G | B17: Is the debt secured in any way by ad valorem taxes? | C17: indicates which individual debt obligations are in part or whole pledged with property taxes | D17: Select "Yes" from the dropdown list if any part of the debt obligation is secured with ad valorem taxes. If not, select "No". | E17: 140.008(b)(1)(F)
A18: column H | B18: Total proceeds received | C18: total assets received from the sale of a new issue of public securities | D18: Enter the total assets received from the individual debt obligation. | E18: 140.008(b)(1)(G)(ii)
A19: column I | B19: Proceeds spent | C19: the portion of total proceeds received (column H) that have been spent | D19: Enter the portion of the total assets received from the individual debt obligation that have been spent. The spreadsheet automatically calculates this amount. | E19: 140.008(b)(1)(G)(ii)
A20: column J | B20: Proceeds unspent | C20: the portion of total proceeds received that are remaining to be spent | D20: Enter the portion of the total assets received from the individual debt obligation that have not been spent. (Formula: subtract column I from column H) | E20: 140.008(b)(1)(G)(ii)
A21: column K | B21: Official stated purpose for which the debt obligation was authorized | C21: The reason for the debt issuance as defined in ballot language if applicable or the Official Statement | D21: Enter the purpose for the issuance of this individual series as defined in ballot language if applicable or the Official Statement. If there is not sufficient space in column K, use the Additional Notes (tab 4) to add further information regarding purpose. Be sure to label any additional notes you enter in the Additional Notes tab. | E21: 140.008(b)(1)(G)(iv)
A22: columns L - Q | B22: current credit rating | C22: existing rating given by any nationally recognized credit rating organization to debt obligations | D22: Identify if the obligation has received a credit rating. If so, enter the current rating in the appropriate column. Enter credit ratings for all agencies that apply. If the credit rating organization is not listed, enter the rating organization and rating in the "Other Rating" column. If the debt obligation is identified as unrated, columns M - Q will be blacked out. | E22: 140.008(b)(2)
A23: Tab 3: Summary of Debt Obligations
A24: Item # | B24: Terms | C24: Definitions | D24: Directions | E24: References, Local Government Code
A25: 1 | B25: Total authorized debt obligations | C25: 1. Debt obligations are defined in the bill as issued public securities which are instruments, including bonds, certificates, notes, or other types of obligations authorized to be issued by an issuer under a statute, a municipal home-rule charter, or the constitution of this state (Government Code section 1201.002 (2)). 2. Issuance is the process of authorizing, selling and delivering public debt. 3. Public security authorization means a resolution , order, or ordinance that is approved or adopted, or any other action taken in a proceeding, by the governing body of an issuer in authorizing the issuance of a public security (Government Code section 1201.002 (3)). | D25: Sum any and all authorized debt obligations. This includes voter-approved and non-voter approved debt obligations. | E25: 140.008(b)(1)(A), 1201.002
A26: 2 | B26: Total principal of all outstanding debt obligations | C26: Total amount borrowed (par) of all obligations that have yet to be repaid | D26: Sum the total amount borrowed of all debt obligations that have yet to be repaid. | E26: 140.008(b)(1)(B)
A27: 3 | B27: Combined principal and interest required to pay all outstanding debt obligations on time and in full | C27: Total amount borrowed (par) that has yet to be repaid plus the cost of interest | D27: Sum the amount borrowed that has yet to be repaid and the cost of interest; total debt service. | E27: 140.008(b)(1)(D)
A28: 4 | B28: Total authorized debt obligations secured by ad valorem taxation | C28: Total debt obligations secured by a pledge of property taxes | D28: Sum any and all authorized debt obligations secured in any way by ad valorem taxation. Include combination tax and revenue debt obligations in this total. | E28: 140.008(b)(1)(F) & 140.008(b)(1)(A)
A29: 5 | B29: Total principal of all outstanding debt obligations secured by ad valorem taxation | C29: Total amount borrowed (par) of obligations secured by a pledge of property taxes that have yet to be repaid | D29: Sum the total amount borrowed of all obligations secured in any way by ad valorem taxation that have yet to be repaid. Include combination tax and revenue debt obligations in this total. | E29: 140.008(b)(1)(F) & 140.008(b)(1)(B)
A30: 6 | B30: Combined principal and interest required to pay all outstanding debt obligations secured by ad valorem taxation on time and in full | C30: Total amount borrowed (par)of all property tax-secured obligations plus the cost of interest | D30: Sum the amount borrowed for obligations secured in any way by ad valorem taxation plus debt service costs. Include combination tax and revenue debt obligations in this total. | E30: 140.008(b)(1)(F) & 140.008(b)(1)(D)
A31: 7 | B31: Political subdivision's population | C31: The denominator used to calculate per capita figures requested on the Summary of Debt Obligations tab. This is a population total for the entity. | D31: Make sure that the year of the population figures being used match the fiscal year being reporting on. | E31: 140.008(b)(1)(F)
A32: 8 | B32: Source and year of population data | C32: The source of population data comprising the denominator of per capita figures. | D32: Include the data source, year and any other pertinent information on the data. For example, if you are using the American Community Survey data, specify the table number. Note that school district population data is available from the U.S. Census Bureau's Poverty Estimates for School Districts which is part of their Small Area Income and Poverty Program (SAIPE) | E32: 140.008(b)(1)(F)
A33: 9 | B33: Total authorized debt obligations secured by ad valorem taxation expressed as a per capita amount (required for a municipality, county, and school districts only) | C33: Total authorized debt obligations secured by a pledge of property taxes divided by the population of the political subdivision (only school districts, municipalities and counties are required to provide a response to this question). | D33: Sum any and all authorized debt obligations secured in any way by ad valorem taxation that have yet to be repaid and divide this by the population of the political subdivision. Include combination tax and revenue debt obligations in this total. | E33: 140.008(b)(1)(F) & 140.008(b)(1)(A)
A34: 10 | B34: Total principal of outstanding debt obligations secured by ad valorem taxation as a per capita amount (required for municipalities, counties, and school districts only) | C34: Total amount borrowed (par) secured by a pledge of property taxes divided by the population of the political subdivision (only school districts, municipalities and counties are required to provide a response to this question). | D34: Sum the total amount borrowed of all obligations secured in any way by ad valorem taxation that have yet to be repaid. Include combination tax and revenue debt obligations in this total. Divide this figure by the population total for the political subdivision. | E34: 140.008(b)(1)(F) & 140.008(b)(1)(B)
A35: 11 | B35: Combined principal and interest required to pay all outstanding debt obligations secured by ad valorem taxation on time and in full as a per capita amount (required for municipalities, counties, and school districts only) | C35: Total debt obligations secured by a pledge of property taxes plus the cost of debt service on these obligations divided by the population of the political subdivision (only school districts, municipalities and counties are required to provide a response to this question). | D35: Sum the total amount borrowed of all obligations secured in any way by ad valorem taxation that have yet to be repaid. Include combination tax and revenue debt obligations in this total. Add to this the cost of debt service for these debt obligations. Divide this total by the population of the political subdivision. | E35: 140.008(b)(1)(F) & 140.008(b)(1)(D)
A36: Table of Contents
A37: End of Worksheet
